lending/lending_fUSD_20250316
["ID","MTS","AMOUNT","RATE_DAILY","PERIOD"]
[356239246,1742123437939,-447.27,0.00048479,120]
[356239247,1742123437949,-496.38,0.00048479,120]
[356239248,1742123437958,-307.53,0.00048479,120]
[356239249,1742123437968,-195.59,0.00048479,120]
[356239250,1742123437979,-391.22,0.00048479,120]
[356239251,1742123437990,-500.0,0.00048479,120]
[356239252,1742123438000,-500.0,0.00048479,120]
[356239254,1742123438009,-500.0,0.00048479,120]
[356239255,1742123438019,-150.000001,0.00048479,120]
[356239257,1742123438032,-500.0,0.00048479,120]
[356239258,1742123438042,-1515.0,0.0004848,7]
[356239259,1742123438052,-3552.10860074,0.0004848,120]
[356239260,1742123438064,-6986.421322,0.0004848,120]
[356239261,1742123438077,-13429.95007726,0.0004848,120]
[356239262,1742123438086,-181.62,0.00048483,2]
[356239264,1742123438096,-5000.0,0.000485,120]
[356239266,1742123438107,-1000.0,0.0004859,2]
[356239267,1742123438117,-11924.5681693,0.000487,37]
[356239269,1742123438127,-15646.7344651,0.0004872,4]
[356239271,1742123438136,-500.0,0.00048729,120]
[356239273,1742123438146,-553.15,0.00048729,2]
[356239275,1742123438155,-500.0,0.00048729,120]
[356239277,1742123438166,-34936.97728835,0.0004873,120]
[356239278,1742123438178,-15706.02271165,0.0004873,120]
[356239279,1742123438188,-15646.7344651,0.0004876,4]
[356239280,1742123438197,-1588.24452976,0.00048778,20]
[356239281,1742123438208,-22707.5943,0.0004878,2]
[356239282,1742123438218,-172.64,0.000488,120]
[356239283,1742123438228,-500.0,0.000488,2]
[356239284,1742123438238,-155.89,0.000488,2]
[356239285,1742123438247,-15646.7344651,0.00048858,4]
[356239286,1742123438257,-11376.13952839,0.00048859,4]
[356239287,1742123438268,-531.34202643,0.00048859,4]
[356239288,1742123438279,-500.0,0.00048859,4]
[356239289,1742123438290,-980.92000003,0.00048859,4]
[356239292,1742123439733,-315.36443668,0.00048859,4]
[356239293,1742123439942,-293.93629405,0.00048859,4]
[356239294,1742123439954,-1649.03217952,0.00048859,4]
[356239295,1742123439963,-31293.4689302,0.00048868,4]
[356239296,1742123439973,-4718.3294,0.00048869,120]
[356239297,1742123439982,-500.0,0.00048877,120]
[356239298,1742123439992,-265.6,0.00048877,120]
[356239299,1742123440001,-500.0,0.00048877,120]
[356239300,1742123440010,-500.0,0.00048877,100]
[356239301,1742123440019,-500.0,0.00048877,120]
[356239302,1742123440027,-500.0,0.00048877,2]
[356239303,1742123440038,-267.02365338,0.00048877,120]
[356239304,1742123440048,-620.86523991,0.00048878,2]
[356239305,1742123440059,-1375.606,0.00048878,2]
[356239306,1742123440070,-403.2164297,0.00048878,2]
[356239307,1742123440082,-32544.52041238,0.00048878,2]
[356239308,1742123440093,-5765.74704809,0.00048878,2]
[356239309,1742123440158,-17102.24667609,0.00048878,2]
[356239404,1742123443425,-847.40474097,0.00048878,2]
[356239407,1742123443437,-7399.63525286,0.00048878,2]
[356239409,1742123443446,-15646.7344651,0.00048878,4]
[356239411,1742123443456,-15646.7344651,0.00048879,4]
[356239413,1742123443466,-1406.43476392,0.0004888,120]
[356239415,1742123443478,-500.0,0.00048888,120]
[356239417,1742123443487,-500.0,0.00048888,120]
[356239419,1742123443497,-500.0,0.00048888,120]
[356239421,1742123443507,-500.0,0.00048888,120]
[356239423,1742123443516,-500.0,0.00048888,120]
[356239425,1742123443526,-500.0,0.00048888,120]
[356239427,1742123443535,-185.8359474,0.00048888,120]
[356239429,1742123443545,-359.7,0.00048888,120]
[356239430,1742123443554,-500.0,0.00048888,120]
[356239433,1742123443564,-402.3,0.00048888,120]
[356239435,1742123443575,-500.0,0.00048888,120]
[356239437,1742123443584,-500.0,0.00048888,120]
[356239438,1742123443594,-581.48,0.00048888,120]
[356239441,1742123443604,-500.0,0.00048888,120]
[356239442,1742123443613,-553.15,0.00048888,2]
[356239444,1742123443623,-500.0,0.00048888,120]
[356239446,1742123443633,-500.0,0.00048888,120]
[356239448,1742123443642,-500.0,0.00048888,120]
[356239451,1742123443652,-613.21037961,0.00048888,120]
[356239453,1742123443662,-632.13547149,0.00048888,120]
[356239455,1742123443672,-31293.4689302,0.00048889,4]
[356239457,1742123443681,-20363.4275507,0.00048889,4]
[356239459,1742123443691,-8920.30050478,0.0004889,4]
[356239461,1742123443703,-6726.43396032,0.0004889,4]
[356239463,1742123443712,-2222.29868363,0.0004889,4]
[356239599,1742123445224,-7959.41509177,0.0004889,4]
[356239601,1742123445234,-500.0,0.00048898,120]
[356239603,1742123445243,-500.0,0.00048898,120]
[356239605,1742123445252,-500.0,0.00048898,100]
[356239607,1742123445261,-500.0,0.00048898,120]
[356239609,1742123445270,-500.0,0.00048898,2]
[356239611,1742123445279,-87748.9564,0.00048899,120]
[356239613,1742123445288,-500.0,0.00048899,120]
[356239615,1742123445298,-286.63,0.00048899,120]
[356239617,1742123445307,-500.0,0.00048899,120]
[356239619,1742123445317,-500.0,0.00048899,120]
[356239621,1742123445326,-574.30767764,0.000489,33]
[356239623,1742123445335,-89826.72390589,0.000489,33]
[356239625,1742123445346,-1000.0,0.000489,33]
[356239627,1742123445358,-1598.89385898,0.000489,33]
[356239629,1742123445369,-4160.4044762,0.000489,33]
[356239632,1742123445381,-370.329914,0.000489,33]
[356239634,1742123445395,-21877.41031347,0.000489,33]
[356239636,1742123445405,-5000.0,0.000489,30]
[356239638,1742123445415,-270.27781854,0.000489,120]
[356239640,1742123445423,-270.27781854,0.000489,120]
[356239642,1742123445433,-270.27781854,0.000489,120]
[356239644,1742123445442,-270.27781854,0.000489,120]
[356239646,1742123445451,-270.27781854,0.000489,120]
[356239648,1742123445460,-270.27781854,0.000489,120]
[356239650,1742123445469,-270.27781854,0.000489,120]
[356239652,1742123445478,-270.27781854,0.000489,120]
[356239655,1742123445489,-270.27781854,0.000489,120]
[356239657,1742123445499,-270.27781854,0.000489,120]
[356239659,1742123445508,-270.27781854,0.000489,120]
[356239661,1742123445518,-270.27781854,0.000489,120]
[356239664,1742123445527,-270.27781854,0.000489,120]
[356239668,1742123445536,-270.27781854,0.000489,120]
[356239671,1742123445545,-270.27781854,0.000489,120]
[356239673,1742123445555,-270.27781854,0.000489,120]
[356239675,1742123445564,-270.27781854,0.000489,120]
[356239677,1742123445573,-270.27781854,0.000489,120]
[356239679,1742123445582,-270.27781854,0.000489,120]
[356239681,1742123445591,-270.27,0.000489,120]
[356239683,1742123445601,-630.64824325,0.000489,120]
[356239685,1742123445610,-630.64824325,0.000489,120]
[356239687,1742123445619,-630.64824325,0.000489,120]
[356239689,1742123445629,-630.64824325,0.000489,120]
[356239691,1742123445638,-630.64824325,0.000489,120]
[356239693,1742123445647,-630.64824325,0.000489,120]
[356239695,1742123445656,-630.64824325,0.000489,120]
[356239697,1742123445665,-630.64824325,0.000489,120]
[356239699,1742123445674,-630.64824325,0.000489,120]
[356239701,1742123445683,-630.64824325,0.000489,120]
[356239703,1742123445692,-630.64824325,0.000489,120]
[356239705,1742123445701,-630.64824325,0.000489,120]
[356239707,1742123445711,-630.64824325,0.000489,120]
[356239709,1742123445720,-630.64824325,0.000489,120]
[356239711,1742123445729,-630.64824325,0.000489,120]
[356239713,1742123445739,-630.64824325,0.000489,120]
[356239715,1742123445748,-630.64824325,0.000489,120]
[356239717,1742123445757,-630.64824325,0.000489,120]
[356239719,1742123445767,-630.64824325,0.000489,120]
[356239721,1742123445775,-630.64,0.000489,120]
[356239723,1742123445785,-2400.76770994,0.000489,10]
[356239726,1742123445795,-156.01188324,0.000489,2]
[356239728,1742123445804,-15646.7344651,0.0004893,4]
[356239730,1742123445814,-10181.7137754,0.0004893,4]
[356239732,1742123445823,-46940.2033953,0.0004894,4]
[356239734,1742123445832,-61090.2826522,0.0004894,4]
[356239736,1742123445841,-31293.4689302,0.0004894,4]
[356239738,1742123445849,-16247.63269676,0.0004894,4]
[356239740,1742123445865,-3802.49998875,0.0004894,4]
[356239745,1742123445899,-313.29486519,0.0004894,4]
[356239747,1742123445908,-344.37802367,0.00048949,120]
[356239749,1742123445917,-500.0,0.00048949,120]
[356239751,1742123445927,-256.62450199,0.00048949,100]
[356239753,1742123445937,-500.0,0.00048949,120]
[356239755,1742123445946,-500.0,0.00048949,2]
[356239757,1742123445955,-1937.39500554,0.0004895,120]
[356239759,1742123445967,-1011.65268249,0.0004895,120]
[356239762,1742123445978,-2240.30242181,0.0004895,120]
[356239766,1742123446012,-3802.17023051,0.0004895,120]
[356239768,1742123446023,-838.0,0.0004895,120]
[356239897,1742123703110,1000.0,0.0001379,30]
[356239898,1742123774236,251.7355,0.00044931,14]
[356239899,1742123890469,500.13780682,0.0002488,7]
[356239900,1742124003096,1000.0,0.0001379,30]
[356239901,1742124097185,200.0,0.00045,2]
[356239902,1742124308541,16076.1664014,0.0001,2]
[356239903,1742124308570,25000.0,0.0001,2]
[356239904,1742124308612,25000.0,0.0001,2]
[356239905,1742124308644,25000.0,0.0001,2]
[356239906,1742124308675,22012.31466573,0.0001,2]
[356239907,1742124320431,1012.77263419,9e-05,2]
[356239908,1742124337175,1974.91270008,8e-05,2]
[356239909,1742124337207,11025.08729992,8e-05,2]
[356239910,1742124355575,13874.91270008,9.88e-05,2]
[356239911,1742124355606,25000.0,9.88e-05,2]
[356239912,1742124355639,25000.0,9.88e-05,2]
[356239913,1742124356099,34720.3220221,6.94e-05,2]
[356239914,1742124359080,-150.50606945,9.88e-05,2]
[356239915,1742124363566,225.86402939,8e-05,2]
[356239916,1742124364626,-150.0,9.879e-05,2]
[356239917,1742124367857,8952.58668374,8e-05,2]
[356239919,1742124478599,16962.01824806,8e-05,2]
[356239921,1742124564320,-150.0,9.879e-05,2]
[356239923,1742124564358,-5603.40728808,9.88e-05,2]
[356239925,1742124564391,-6780.76862449,9.88e-05,2]
[356239928,1742124564986,-196.34065786,9.88e-05,2]
[356239929,1742124581638,-155.09312886,9.88e-05,2]
[356239930,1742124589284,-5262.34140047,9.88e-05,2]
[356239934,1742124591318,-150.0,9.88e-05,2]
[356239948,1742124631989,-16659.7216019,9.88e-05,2]
[356239949,1742124631999,-26797.22659779,0.0001,2]
[356239950,1742124632011,-212.06983898,0.000163,2]
[356239951,1742124632032,-212.0698389,0.000199,2]
[356239952,1742124632045,-3392.09008938,0.0002,4]
[356239953,1742124632055,-150.0,0.0002488,7]
[356239954,1742124632066,-1292.96713774,0.00025,7]
[356239955,1742124632076,-156.66,0.00026849,2]
[356239956,1742124632086,-745.29998835,0.00027,2]
[356239957,1742124632096,-150.0,0.00028999,2]
[356239958,1742124632106,-10000.0,0.00029,7]
[356239959,1742124632116,-155.0931,0.00029863,10]
[356239960,1742124632126,-500.0,0.00029879,2]
[356239961,1742124632137,-39679.14328694,0.0002988,2]
[356239962,1742124632148,-212.0698389,0.000299,5]
[356239963,1742124632159,-235.35984798,0.00029991,60]
[356239964,1742124632169,-4015.51331122,0.00029991,2]
[356239965,1742124632178,-555.77171293,0.00029991,20]
[356239966,1742124632187,-820.819999,0.00035,2]
[356239967,1742124632197,-1055.72,0.00036506,2]
[356239968,1742124632207,-156.66,0.00036862,2]
[356239969,1742124632217,-86151.4748243,0.0003799,3]
[356239970,1742124632227,-192.76378895,0.00037999,15]
[356239971,1742124632237,-39901.51113435,0.00038,2]
[356239972,1742124632249,-332.332,0.00038,2]
[356239973,1742124632262,-295.79472156,0.00038,2]
[356239974,1742124632274,-1000.0,0.00038,2]
[356239975,1742124632307,-258.98598554,0.00038,2]
[356240066,1742124637795,-33849.80000001,0.00038,2]
[356240067,1742124637808,-16323.12503163,0.00038,2]
[356240068,1742124637850,-415.365,0.00038,2]
[356240069,1742124637905,-333.446,0.00038,2]
[356240070,1742124637919,-2569.74853567,0.00038,2]
[356240071,1742124638015,-5353.11168528,0.00038,2]
[356240072,1742124638028,-83163.0,0.00038,2]
[356240203,1742124639916,-483.56019233,0.00038,2]
[356240204,1742124640024,-880.7567908,0.00038,2]
[356240205,1742124640180,-338.06224798,0.00038,2]
[356240206,1742124640234,-11315.0444501,0.00038,2]
[356240207,1742124640290,-1905.88003617,0.00038,2]
[356240230,1742124642937,-110069.73183908,0.00038,2]
[356240232,1742124643061,-2155.83367199,0.00038,2]
[356240233,1742124643073,-33532.8442443,0.00038,2]
[356240234,1742124643085,-864.75533186,0.00038,2]
[356240235,1742124643100,-27033.67739916,0.00038,2]
[356240236,1742124643109,-506.84632659,0.00038056,2]
[356240237,1742124643119,-1482.3615611,0.00038156,10]
[356240238,1742124643128,-500.0,0.00038356,15]
[356240239,1742124643138,-396.08854336,0.00038356,15]
[356240240,1742124643147,-1055.72,0.0003877,2]
[356240241,1742124643157,-212.0698389,0.000399,8]
[356240242,1742124643166,-1055.72,0.00041033,2]
[356240243,1742124643175,-1055.72,0.00043297,2]
[356240244,1742124643184,-1055.72,0.00045561,2]
[356240245,1742124643194,-500.0,0.00046034,2]
[356240246,1742124643207,-500.0,0.00046575,120]
[356240247,1742124643216,-500.0,0.00046575,120]
[356240248,1742124643226,-507.05,0.00046575,2]
[356240249,1742124643235,-500.0,0.00046575,120]
[356240250,1742124643244,-500.0,0.00046575,120]
[356240251,1742124643254,-500.0,0.00046575,2]
[356240252,1742124643263,-500.0,0.00046575,2]
[356240253,1742124643275,-234.98,0.00046814,120]
[356240254,1742124643285,-156.66,0.00046874,2]
[356240255,1742124643295,-472.33,0.0004718,8]
[356240256,1742124643304,-176.1782239,0.0004748,4]
[356240257,1742124643314,-152.14,0.00047676,2]
[356240258,1742124643323,-500.0,0.00047676,2]
[356240259,1742124643333,-14358.5791374,0.00047763,3]
[356240260,1742124643343,-1104.01,0.00047773,120]
[356240261,1742124643353,-250.0,0.00047807,120]
[356240262,1742124643363,-2000.0,0.00047812,120]
[356240265,1742124643372,-8728.92896619,0.00047816,2]
[356240282,1742124645851,-337.82000013,0.00038356,15]
[356240283,1742124645908,-162.17999987,0.00038356,15]
[356240284,1742124645918,-500.0,0.00038356,15]
[356240285,1742124645927,-215.97443817,0.00038356,15]
[356240286,1742124645937,-1587.03359657,0.00047816,2]
[356240287,1742124645948,-1664.84304,0.00047816,2]
[356240288,1742124645960,-261.59466892,0.00047816,2]
[356240289,1742124645972,-299.47741117,0.00047816,2]
[356240290,1742124645983,-11358.12231715,0.00047816,2]
[356240291,1742124645993,-1055.72,0.00047825,2]
[356240292,1742124646003,-500.0,0.00047854,120]
[356240293,1742124646012,-500.0,0.00047854,120]
[356240294,1742124646023,-507.05,0.00047854,2]
[356240295,1742124646033,-536.75703962,0.00047854,120]
[356240296,1742124646043,-500.0,0.00047854,120]
[356240297,1742124646052,-169.24,0.00047854,120]
[356240298,1742124646062,-200.0,0.00047855,2]
[356240299,1742124646071,-1944.85,0.00047875,2]
[356240300,1742124646080,-317.68277111,0.0004788,100]
[356240301,1742124646090,-14358.5791374,0.00047882,4]
[356240302,1742124646099,-1000.0,0.00047892,2]
[356240303,1742124646108,-1000.0,0.000479,2]
[356240304,1742124646118,-500.0,0.000479,2]
[356240305,1742124646127,-826.59,0.00048055,30]
[356240306,1742124646136,-152.14,0.00048073,2]
[356240307,1742124646145,-50000.0,0.000481,21]
[356240308,1742124646154,-1000.0,0.000481,120]
[356240309,1742124646164,-14358.5791374,0.0004837,4]
[356240310,1742124646173,-1115.09404908,0.00048379,2]
[356240311,1742124646183,-3004.095,0.00048379,83]
[356240312,1742124646195,-260.484,0.00048379,83]
[356240313,1742124646205,-47155.2448,0.0004838,2]
[356240314,1742124646215,-500.0,0.00048468,2]
[356240315,1742124646224,-14358.5791374,0.00048469,4]
[356240316,1742124646233,-152.14,0.0004847,2]
[356240317,1742124646242,-500.0,0.00048479,120]
[356240318,1742124646252,-500.81429761,0.00048479,120]
[356240319,1742124646261,-150.0,0.00048689,7]
[356240320,1742124646270,-150.0,0.00048689,7]
[356240321,1742124646280,-150.0,0.00048698,7]
[356240322,1742124646289,-150.0,0.00048703,7]
[356240323,1742124646298,-150.0,0.00048703,7]
[356240324,1742124646308,-150.0,0.00048748,7]
[356240325,1742124646318,-150.0,0.00048755,7]
[356240326,1742124646328,-150.0,0.00048777,7]
[356240327,1742124646338,-150.0,0.00048792,7]
[356240328,1742124646347,-1217.7196,0.00048799,2]
[356240329,1742124646357,-1000.0,0.000488,120]
[356240331,1742124646367,-150.0,0.00048815,7]
[356240333,1742124646376,-150.0,0.00048834,7]
[356240335,1742124646386,-150.0,0.00048834,7]
[356240337,1742124646395,-150.0,0.00048839,7]
[356240339,1742124646404,-150.0,0.00048845,7]
[356240341,1742124646414,-150.0,0.00048847,7]
[356240343,1742124646424,-1000.0,0.0004885,2]
[356240345,1742124646433,-2500.0,0.0004885,2]
[356240347,1742124646442,-150.0,0.00048856,7]
[356240349,1742124646452,-152.14,0.00048868,2]
[356240352,1742124646462,-150.0,0.00048887,7]
[356240354,1742124646473,-30012.98140919,0.0004889,4]
[356240356,1742124646488,-2488.53,0.0004889,4]
[356240358,1742124646500,-3987.59113352,0.0004889,4]
[356240360,1742124646511,-6586.63486949,0.0004889,4]
[356240362,1742124646521,-500.0,0.00048899,120]
[356240364,1742124646531,-31466.85950699,0.000489,120]
[356240366,1742124646542,-958.20679999,0.000489,120]
[356240369,1742124646554,-6658.2651403,0.000489,120]
[356240371,1742124646568,-1637.40439275,0.000489,120]
[356240373,1742124646579,-569.6295,0.000489,120]
[356240375,1742124646591,-949.24,0.000489,120]
[356240377,1742124646603,-675.76930326,0.000489,120]
[356240379,1742124646617,-3328.0,0.000489,120]
[356240382,1742124646629,-600.55,0.000489,120]
[356240384,1742124646641,-557.28,0.000489,120]
[356240421,1742124668043,-204.6445,0.00013832,2]
[356240422,1742124762263,-45.3555,0.00013832,2]
[356240423,1742124762287,-104.6445,0.00019,2]
[356240424,1742125111986,-162.28401461,0.00024592,7]
[356240458,1742125832040,-145.3555,0.00019,2]
[356240460,1742125832050,-250.58707551,0.00024392,2]
[356240462,1742125832060,-2353.04569967,0.00024491,2]
[356240464,1742125832070,-736.77867947,0.00024492,2]
[356240466,1742125832081,-135.26298539,0.00024592,7]
[356240468,1742125832091,-3431.836,0.00024592,7]
[356240470,1742125832101,-204.95757833,0.000299,5]
[356240472,1742125832111,-5000.0,0.00029999,30]
[356240474,1742125832120,-150.0,0.00034548,10]
[356240476,1742125832130,-423.34,0.00037883,2]
[356240478,1742125832139,-204.95757828,0.00041567,9]
[356240480,1742125832148,-211.15666019,0.00045,120]
[356240482,1742125832157,-502.24780557,0.00045,120]
[356240483,1742125832166,-877.41,0.00045209,2]
[356240485,1742125832175,-687.13,0.00045463,120]
[356240487,1742125832185,-297.547,0.00045944,75]
[356240489,1742125832194,-3431.836,0.00045944,75]
[356240491,1742125832203,-166.98,0.00046827,2]
[356240492,1742125832212,-187.98,0.0004708,120]
[356240493,1742125832221,-200.0,0.00047101,2]
[356240494,1742125832230,-3000.0,0.0004739,120]
[356240495,1742125832238,-3000.0,0.0004739,120]
[356240496,1742125832247,-500.0,0.00047391,8]
[356240497,1742125832256,-23900.0,0.00047392,2]
[356240498,1742125832265,-877.41,0.00047473,2]
[356240499,1742125832275,-176.1782239,0.0004748,4]
[356240500,1742125832284,-2000.0,0.00047485,120]
[356240501,1742125832293,-250.0,0.00047493,120]
[356240502,1742125832303,-2000.0,0.00047523,120]
[356240503,1742125832312,-300.0,0.0004754,4]
[356240504,1742125832322,-1852.42,0.00047541,120]
[356240505,1742125832331,-169.24,0.00047607,120]
[356240506,1742125832340,-167.22,0.00047791,2]
[356240507,1742125832350,-2816.81,0.00047847,2]
[356240508,1742125832359,-200.0,0.00047876,2]
[356240509,1742125832369,-1000.0,0.00047916,2]
[356240510,1742125832379,-151.62,0.00048192,30]
[356240511,1742125832389,-888.31,0.00048192,30]
[356240512,1742125832399,-300.0,0.00048192,30]
[356240513,1742125832408,-150.0,0.00048692,7]
[356240514,1742125832417,-150.0,0.00048722,7]
[356240515,1742125832566,-150.0,0.0004876,7]
[356240516,1742125832576,-150.0,0.00048785,7]
[356240517,1742125832587,-150.0,0.00048796,7]
[356240518,1742125832596,-3000.0,0.000488,120]
[356240519,1742125832605,-245.98250988,0.00048815,7]
[356240520,1742125832615,-150.0,0.00048828,7]
[356240521,1742125832624,-735.6128,0.0004885,2]
[356240522,1742125832633,-11944.7968,0.0004885,2]
[356240523,1742125832642,-2500.0,0.0004885,2]
[356240524,1742125832652,-201.7183,0.0004885,2]
[356240525,1742125832661,-759.0591,0.0004885,2]
[356240526,1742125832670,-150.0,0.00048858,7]
[356240527,1742125832679,-1000.0,0.00048866,2]
[356240528,1742125832689,-468.7294,0.00048866,2]
[356240529,1742125832698,-156.1552,0.00048869,2]
[356240530,1742125832707,-523.29915588,0.00048869,2]
[356240531,1742125832717,-150.0,0.00048878,7]
[356240532,1742125832726,-4357.8985,0.00048879,2]
[356240533,1742125832735,-150.0,0.00048885,7]
[356240534,1742125832744,-1383.53745698,0.00048886,21]
[356240535,1742125832753,-17668.96358005,0.00048899,120]
[356240536,1742125832765,-254.46,0.00048899,120]
[356240537,1742125832777,-12448.16541727,0.00048899,120]
[356240539,1742125832789,-28309.46963432,0.00048899,120]
[356240542,1742125832800,-317.82683214,0.00048899,120]
[356240544,1742125832812,-1958.84225498,0.00048899,120]
[356240546,1742125832823,-1158.6575,0.00048899,120]
[356240548,1742125832834,-2029.88435016,0.00048899,120]
[356240551,1742125832846,-1151.55012815,0.00048899,120]
[356240555,1742125832858,-640.09000008,0.00048899,120]
[356240558,1742125832869,-256.7011023,0.00048899,120]
[356240630,1742125838003,-1765.83960069,0.00048899,120]
[356240631,1742125838059,-20927.54959986,0.00048899,120]
[356240632,1742125838073,-3750.70158628,0.000489,120]
[356240633,1742125838086,-1749.29851354,0.000489,120]
[356240634,1742125838096,-19.38556615,0.0004894,7]
[356240635,1742125838108,-130.61443385,0.0004894,7]
[356240636,1742125838118,-1525.78030615,0.00048945,2]
[356240637,1742125838130,-1019.50641035,0.00048945,2]
[356240638,1742125838140,-845.3940775,0.00048945,2]
[356240639,1742125838150,-106.29951335,0.00048945,2]
[356240640,1742125838163,-413.66,0.00048945,2]
[356240642,1742125840057,-424.86478445,0.00048945,2]
[356240643,1742125840070,-3000.0,0.00048948,120]
[356240644,1742125840080,-279.6830926,0.00048949,120]
[356240645,1742125840089,-500.0,0.00048949,120]
[356240646,1742125840098,-500.0,0.00048949,120]
[356240647,1742125840108,-478.44408708,0.00048949,120]
[356240648,1742125840119,-500.0,0.00048949,120]
[356240649,1742125840128,-500.0,0.00048949,2]
[356240650,1742125840137,-500.0,0.00048949,120]
[356240651,1742125840147,-500.0,0.00048949,120]
[356240652,1742125840158,-169.82,0.00048949,120]
[356240653,1742125840169,-500.0,0.00048949,120]
[356240654,1742125840178,-500.0,0.00048949,120]
[356240655,1742125840188,-500.0,0.00048949,120]
[356240656,1742125840197,-628.72583514,0.00048949,120]
[356240657,1742125840207,-10131.13141782,0.0004895,21]
[356240658,1742125840326,-401.44214624,0.00048944,2]
[356240659,1742125840430,-1103.17565246,0.00048944,2]
[356240660,1742125840439,-149.51155613,0.0004895,21]
[356240661,1742125840483,-2816.99399786,0.0004895,21]
[356240662,1742125840494,-414.915,0.0004895,21]
[356240663,1742125840505,-518.72,0.0004895,21]
[356240664,1742125840536,-527.55520127,0.0004895,21]
[356240665,1742125840548,-713.45879234,0.0004895,21]
[356240666,1742125841557,156.96884606,0.0004884,120]
[356240677,1742125843052,-623.08545795,0.0004884,120]
[356240679,1742125843065,-2219.94569599,0.0004884,120]
[356240680,1742125843076,-34727.71403458,0.0004895,21]
[356240681,1742125843086,-4737.23750548,0.0004895,120]
[356240682,1742125843097,-35433.24215417,0.0004895,120]
[356240683,1742125843107,-9297.33214083,0.0004896,4]
[356240684,1742125843259,-1.09837406,0.0004896,4]
[356240700,1742125844880,-625.19699839,0.0004896,4]
[356240701,1742125844892,-3029.27214002,0.0004896,4]
[356240702,1742125844902,-233.22786085,0.00048965,120]
[356240703,1742125844914,-162.53226138,0.00048965,120]
[356240704,1742125844924,-916.48773862,0.00048966,2]
[356240705,1742125844935,-568.69313,0.00048966,2]
[356240706,1742125844966,-699.68798728,0.00048966,2]
[356240707,1742125844976,-1824.4509952,0.00048966,2]
[356240708,1742125844989,-1464.0331346,0.00048966,2]
[356240709,1742125844999,-1103.6152739,0.00048966,2]
[356240710,1742125845008,-743.1974133,0.00048966,2]
[356240711,1742125845018,-725.6845286,0.00048966,2]
[356240712,1742125845029,-605.9749796,0.00048966,2]
[356240713,1742125845040,-486.2654306,0.00048966,2]
[356240714,1742125845049,-366.5558817,0.00048966,2]
[356240715,1742125845059,-246.8463327,0.00048966,2]
[356240716,1742125845070,-811.0352241,0.00048966,2]
[356240717,1742125845081,-677.2461504,0.00048966,2]
[356240718,1742125845091,-543.4570767,0.00048966,2]
[356240719,1742125845101,-409.668003,0.00048966,2]
[356240720,1742125845110,-275.8789293,0.00048966,2]
[356240721,1742125845119,-1291.5608081,0.00048966,2]
[356240722,1742125845130,-1078.5038174,0.00048966,2]
[356240723,1742125845139,-865.4468268,0.00048966,2]
[356240724,1742125845149,-652.3898362,0.00048966,2]
[356240725,1742125845159,-439.3328456,0.00048966,2]
[356240726,1742125845169,-12952.8996533,0.00048969,4]
[356240727,1742125845178,-38858.6989598,0.00048969,4]
[356240728,1742125845188,-12952.8996533,0.00048978,4]
[356240729,1742125845197,-12952.8996533,0.00048978,4]
[356240730,1742125845207,-90670.2975729,0.00048979,4]
[356240731,1742125845217,-5568.9025328,0.00048979,4]
[356240732,1742125845226,-38858.6989598,0.00048979,4]
[356240733,1742125845236,-2784.4512664,0.00048979,4]
[356240734,1742125845245,-38858.6989598,0.0004898,4]
[356240735,1742125845255,-6961.128166,0.0004898,4]
[356240736,1742125845264,-7450.86879699,0.0004898,4]
[356240737,1742125845276,-5502.03085631,0.0004898,4]
[356240738,1742125845287,-3000.0,0.00048982,120]
[356240739,1742125845297,-150.0,0.00048986,30]
[356240740,1742125845306,-150.0,0.00048986,30]
[356240741,1742125845316,-150.0,0.00048986,30]
[356240742,1742125845325,-150.0,0.00048986,30]